bitfinex-derivatives/quotes_ETHF0:USTF0_20251001
["timestamp","ask_amount","ask_price","bid_price","bid_amount"]
[1759307468910,0.42965,4188.3,4187.6,0.00305159]
[1759307469108,0.3226,4188.6,4188.0,3.2078]
[1759307469318,0.4296,4188.7,4188.1,0.285]
[1759307469521,0.3226,4188.4,4187.9,0.286]
[1759307469722,0.3226,4188.5,4187.9,0.286]
[1759307470017,0.75231,4187.7,4187.6,0.00305159]
[1759307470221,0.75231,4187.7,4184.7,0.85006575]
[1759307470222,0.42983,4186.5,4186.4,3.2078]
[1759307470409,0.3226,4186.0,4185.8,3.2078]
[1759307470611,0.3226,4187.2,4185.8,3.2078]
[1759307470814,0.3226,4187.2,4184.6,0.1283]
[1759307470815,0.3226,4187.2,4186.5,3.2078]
[1759307471222,0.75237,4187.1,4187.0,3.2078]
[1759307471418,0.42977,4187.1,4187.0,3.2078]
[1759307471613,0.00194968,4187.2,4187.0,3.2078]
[1759307471814,0.00194968,4187.2,4187.1,0.3435]
[1759307472016,0.00194968,4187.2,4187.0,3.2078]
[1759307472323,0.00194968,4187.2,4187.0,3.5513]
[1759307472324,0.42977,4187.1,4187.0,3.5513]
[1759307472519,0.75237,4187.1,4187.0,3.2078]
[1759307472822,0.75242,4186.6,4186.5,0.0030412]
[1759307473118,0.3226,4186.2,4185.8,3.2078]
[1759307473330,0.3226,4186.9,4185.8,3.5513]
[1759307473516,0.42983,4186.6,4186.3,3.2078]
[1759307473712,0.3226,4186.4,4186.3,3.2078]
[1759307473919,0.3226,4186.4,4186.3,3.20960872]
[1759307474119,5.3226,4186.4,4186.3,3.20960872]
[1759307474324,0.3226,4186.3,4185.7,3.2078]
[1759307474514,0.4299,4185.8,4185.7,3.2078]
[1759307474819,0.3226,4185.8,4185.7,3.2078]
[1759307475019,3.63767,4186.2,4185.7,3.2078]
[1759307475223,0.42982,4186.6,4185.8,0.3435]
[1759307475522,0.75242,4186.6,4186.5,3.2078]
[1759307475722,0.42987,4186.2,4185.9,3.2078]
[1759307475919,0.3226,4186.0,4185.9,3.2078]
[1759307476321,5.6076,4186.0,4185.9,3.2078]
[1759307476826,0.42988,4186.1,4185.9,3.2078]
[1759307477426,5.3226,4186.0,4185.9,3.2078]
[1759307477726,5.3226,4186.0,4184.5,0.285]
[1759307477727,0.42999,4185.0,4184.9,0.3435]
[1759307477924,0.43001,4184.8,4184.4,0.4718]
[1759307478126,1.07493,4185.2,4184.6,0.3435]
[1759307478420,0.42997,4185.1,4185.0,0.4718]
[1759307478627,3.63777,4185.1,4185.0,0.47485718]
[1759307478827,8.63777,4185.1,4185.0,0.13135718]
[1759307479023,1.075,4184.9,4183.9,3.3361]
[1759307479329,0.43009,4184.0,4183.9,0.4599]
[1759307479527,0.43016,4183.3,4183.2,0.1283]
[1759307479726,1.07544,4183.2,4182.1,3.2078]
[1759307479922,3.2078,4182.4,4181.5,3.2078]
[1759307480117,0.285,4182.3,4182.0,0.13350259]
[1759307480417,3.20961864,4182.4,4182.2,0.43027]
[1759307480418,0.00181864,4182.4,4182.2,0.43027]
[1759307480618,0.00181864,4182.4,4182.2,0.285]
[1759307480822,0.00181864,4182.4,4182.0,3.34130259]
[1759307481019,3.2078,4183.9,4183.2,0.1314]
[1759307481221,0.43016,4183.4,4183.2,0.1314]
[1759307481425,3.2078,4183.3,4183.2,0.1314]
[1759307481727,0.71508,4184.1,4183.8,0.1314]
[1759307481932,0.4301,4184.0,4183.9,0.3316]
[1759307482124,0.00233802,4184.0,4183.9,0.3316]
[1759307482929,5.28733802,4184.0,4183.9,0.3316]
[1759307483131,0.43016,4183.3,4183.2,0.4596]
[1759307483428,9.57038802,4184.0,4182.5,3.2078]
[1759307483429,1.07544,4183.2,4182.6,0.4596]
[1759307483732,3.2078,4183.4,4183.2,0.1241]
[1759307483929,0.43016,4183.4,4183.3,0.68114362]
[1759307484130,0.43021,4182.8,4182.7,0.3282]
[1759307484632,0.43021,4182.8,4182.1,0.43028]
[1759307484633,0.43027,4182.2,4182.1,0.3282]
[1759307485131,0.43028,4182.1,4182.0,3.66950259]
[1759307485333,0.43028,4182.1,4182.0,4.74681452]
[1759307485726,0.43028,4182.1,4182.0,4.01068441]
[1759307485927,0.285,4182.3,4182.1,0.3282]
[1759307486131,3.2078,4183.5,4182.3,0.3282]
[1759307486431,0.71515,4183.4,4183.3,0.3282]
[1759307486735,0.71515,4183.4,4183.3,0.34180967]
[1759307486932,0.43021,4182.8,4182.7,0.3282]
[1759307487134,0.43017,4183.3,4183.2,0.4523]
[1759307487332,0.43017,4183.3,4183.2,1.53014806]
[1759307487539,0.43017,4183.3,4183.2,0.7947732]
[1759307487743,0.71417,4183.3,4183.2,1.53138696]
[1759307488229,5.71417,4183.3,4183.2,1.07908696]
[1759307488632,5.71417,4183.3,4183.2,1.53138696]
[1759307488830,0.43017,4183.3,4183.2,2.14974546]
[1759307489031,0.00233802,4184.0,4183.2,1.20318696]
[1759307489238,0.7141,4183.9,4183.8,0.74846392]
[1759307489436,0.7141,4183.9,4183.8,0.4665732]
[1759307489641,5.7141,4183.9,4183.8,3.2e-06]
[1759307489940,0.43018,4183.1,4183.0,0.3282]
[1759307490131,0.71418,4183.1,4183.0,1.04268664]
[1759307491536,0.71418,4183.1,4183.0,1.16678664]
[1759307491846,0.43018,4183.1,4183.0,1.16678664]
[1759307492243,3.63792,4183.7,4183.6,0.3282]
[1759307492537,3.2078,4183.7,4183.6,0.3282]
[1759307492744,3.2078,4183.7,4183.6,1.03362193]
[1759307493343,3.2078,4183.7,4183.6,0.3282]
[1759307493545,3.4918,4183.7,4183.6,0.3282]
[1759307493840,3.2078,4183.7,4183.6,0.3282]
[1759307494044,3.2078,4183.7,4183.6,1.03040373]
[1759307495240,0.00233802,4184.0,4183.9,0.7583]
[1759307495446,0.00233802,4184.0,4183.9,4.23820373]
[1759307495843,1.0748,4185.7,4185.0,0.1241]
[1759307496042,0.42997,4185.2,4185.1,0.3282]
[1759307496443,1.07465,4186.3,4185.6,0.3282]
[1759307496444,0.42992,4185.7,4185.6,0.3282]
[1759307496743,0.71292,4185.7,4185.6,0.3282]
[1759307496933,0.00309527,4185.7,4185.6,1.02930576]
[1759307497140,37.3,4187.4,4185.6,1.02930576]
[1759307497141,3.2078,4186.8,4186.1,0.3282]
[1759307497339,0.42981,4186.7,4186.6,0.3282]
[1759307497642,0.71281,4186.7,4186.6,1.02693503]
[1759307497942,0.283,4186.7,4186.5,0.1241]
[1759307498145,3.2078,4187.3,4187.1,0.75796]
[1759307498350,0.00296649,4187.3,4187.2,1.02793845]
[1759307498540,0.00296649,4187.3,4187.2,2.58703707]
[1759307498845,0.00296649,4187.3,4187.2,1.31193845]
[1759307499046,0.00296649,4187.3,4187.2,1.02793845]
[1759307500644,5.00296649,4187.3,4187.2,1.02793845]
[1759307500949,5.00296649,4187.3,4187.0,0.4523]
[1759307501137,5.42977,4187.2,4187.1,0.69646001]
[1759307501445,0.42977,4187.2,4187.1,0.3282]
[1759307501643,0.71277,4187.2,4187.1,0.3282]
[1759307502445,0.022,4187.9,4187.1,5.6112]
[1759307502647,0.022,4187.9,4187.7,0.3282]
[1759307502943,0.42977,4187.1,4187.0,0.3282]
[1759307503350,0.42972,4187.6,4187.5,0.3282]
[1759307503543,0.4314647,4187.6,4187.5,0.3282]
[1759307503847,3.6392647,4187.6,4187.5,0.3282]
[1759307504649,3.9252647,4187.6,4187.5,0.3282]
[1759307505444,3.9252647,4187.6,4187.4,0.1241]
[1759307505445,8.9252647,4187.6,4187.4,0.1241]
[1759307505749,2.14811,4188.6,4187.4,0.1241]
[1759307505750,1.69551284,4192.7,4191.8,0.42928]
[1759307505951,3.2078,4193.8,4193.5,0.3282]
[1759307506150,0.47077939,4194.0,4193.5,0.3282]
[1759307506452,0.29,4194.5,4193.9,3.2078]
[1759307506645,0.00245392,4194.5,4194.4,3.2078]
[1759307506945,0.00245392,4194.5,4194.4,3.536]
[1759307507148,3.97774306,4194.5,4194.4,3.536]
[1759307507338,3.97774306,4194.5,4193.5,2.8955435]
[1759307507339,5.00245392,4194.5,4193.5,2.8955435]
[1759307507544,3.2078,4194.3,4193.5,0.42911]
[1759307507740,3.2078,4194.3,4193.0,3.63696]
[1759307507937,3.2078,4194.3,4193.0,3.2078]
[1759307508146,3.2078,4194.3,4193.7,0.42909]
[1759307508452,0.291,4194.2,4193.7,0.00195096]
[1759307508641,3.2078,4193.8,4193.7,0.00195096]
[1759307508841,3.6038,4193.8,4193.7,0.00195096]
[1759307509152,3.6038,4193.8,4192.2,0.1241]
[1759307509153,0.105,4193.7,4192.2,0.1241]
[1759307509339,3.2078,4192.6,4191.5,3.2078]
[1759307509544,3.2078,4192.1,4191.4,0.3282]
[1759307509850,0.292,4192.0,4191.4,0.3282]
[1759307510049,0.292,4192.0,4191.4,0.00174501]
[1759307510348,3.2078,4191.5,4191.4,0.00174501]
[1759307510554,12.6,4192.5,4191.4,0.00174501]
[1759307510555,0.105,4194.3,4191.7,10.73255]
[1759307510753,10.72016,4196.6,4191.4,0.29374501]
[1759307510754,3.2198,4195.1,4193.8,0.3282]
[1759307511054,0.299,4195.0,4194.1,0.42905]
[1759307511244,0.299,4194.9,4194.4,3.2078]
[1759307511551,0.299,4194.8,4194.4,3.20991789]
[1759307511748,0.299,4194.7,4194.4,3.20991789]
[1759307511952,0.00212182,4194.9,4194.5,0.3282]
[1759307512146,0.00212182,4194.9,4194.8,0.75718]
[1759307513148,3.2078,4196.6,4195.8,0.42887]
[1759307513349,3.2078,4197.1,4195.9,0.5543]
[1759307513546,0.298,4197.0,4196.6,0.42879]
[1759307513746,3.63649,4197.6,4196.7,0.5543]
[1759307513945,40.4498,4197.6,4196.7,0.5543]
[1759307514146,15.8078,4197.5,4196.8,0.42878]
[1759307514350,0.298,4197.4,4196.7,0.98308]
[1759307514656,0.00262821,4197.6,4197.3,3.2078]
[1759307515043,16.4166,4197.5,4196.7,0.5543]
[1759307515248,16.4166,4197.5,4193.2,3.2078]
[1759307515249,1.07223,4195.7,4193.2,3.2078]
[1759307515450,0.6088,4194.1,4192.5,3.7621]
[1759307515654,3.2078,4193.3,4192.5,3.7621]
[1759307515844,3.2078,4193.8,4192.5,3.7621]
[1759307516155,0.42919,4192.8,4192.5,3.7621]
[1759307516357,0.305,4192.7,4192.6,0.5543]
[1759307516554,0.4292,4192.7,4192.6,0.5543]
[1759307516754,0.00309255,4192.8,4192.6,0.5543]
[1759307516954,0.00309255,4192.8,4192.5,3.20958115]
[1759307517153,0.305,4192.7,4192.6,0.5543]
[1759307517456,0.42921,4192.6,4192.5,3.20958115]
[1759307517658,0.42921,4192.6,4192.5,0.00178115]
[1759307517856,0.73321,4192.6,4192.5,0.00178115]
[1759307518245,0.42927,4192.0,4191.8,3.2078]
[1759307518449,0.304,4191.9,4191.8,3.1104789]
[1759307518653,0.304,4191.9,4191.2,3.7621]
[1759307518654,0.42934,4191.3,4191.2,3.7621]
[1759307518857,12.6,4191.8,4191.2,3.9992]
[1759307519047,0.00309255,4192.8,4191.2,3.9992]
[1759307519048,1.65893369,4199.1,4191.7,3.2078]
[1759307519250,1.65893369,4199.1,4191.2,0.2371]
[1759307519251,0.6088,4197.5,4196.1,0.5543]
[1759307519445,0.6088,4197.5,4196.0,0.2371]
[1759307519446,40.8,4197.4,4196.3,0.5543]
[1759307519649,0.6088,4196.4,4196.3,3.7621]
[1759307519850,0.31,4196.6,4196.3,0.5543]
[1759307520050,0.6088,4196.4,4196.3,0.00253432]
[1759307520259,0.9178,4196.4,4196.3,0.00253432]
[1759307520554,0.309,4196.4,4196.3,0.00253432]
[1759307520761,0.00240728,4196.6,4196.3,0.00253432]
[1759307520952,0.9178,4196.4,4196.3,0.00253432]
[1759307521149,41.7178,4196.4,4196.3,0.00253432]
[1759307521351,45.8,4196.4,4195.4,0.5543]
[1759307521549,41.109,4196.4,4195.4,0.98322]
[1759307521748,41.109,4196.4,4195.4,0.5543]
[1759307522160,3.2078,4196.1,4195.2,0.2371]
[1759307522351,41.109,4196.4,4195.2,0.2371]
[1759307522352,3.2078,4195.6,4195.2,0.00217956]
[1759307522662,0.031,4195.3,4195.2,0.00217956]
[1759307522961,0.031,4195.3,4194.4,0.66612]
[1759307523157,3.2078,4196.1,4195.3,0.5543]
[1759307523352,0.308,4196.0,4195.3,3.2078]
[1759307523552,0.76787,4196.0,4195.3,3.2078]
[1759307523762,3.2078,4195.5,4195.3,0.0027459]
[1759307524059,3.2078,4195.5,4193.6,0.2371]
[1759307524060,37.556,4195.4,4194.3,3.2078]
[1759307524252,3.2078,4194.9,4194.3,3.2078]
[1759307524455,41.139,4194.8,4194.3,3.2078]
[1759307524856,41.108,4194.8,4194.3,3.2078]
[1759307525061,0.429,4194.5,4194.3,3.20997883]
[1759307525358,0.429,4194.5,4194.3,0.00217883]
[1759307525359,0.308,4194.4,4194.3,0.00217883]
[1759307525565,0.42896,4195.0,4194.4,0.5543]
[1759307525860,0.308,4194.9,4194.8,3.7621]
[1759307526056,0.42896,4195.0,4194.8,3.2078]
[1759307526368,0.42902,4194.4,4194.3,0.00217883]
[1759307526557,0.73602,4194.4,4194.3,0.00217883]
[1759307527463,3.63682,4194.4,4194.3,0.00217883]
[1759307528061,3.2078,4195.2,4194.3,0.55647883]
[1759307528261,0.42895,4195.1,4195.0,0.5543]
[1759307528459,0.73595,4195.1,4195.0,0.5543]
[1759307528660,0.42901,4194.5,4194.3,0.00217883]
[1759307528862,0.307,4194.4,4194.3,0.55647883]
[1759307529067,0.42899,4194.7,4194.4,0.5543]
[1759307529266,0.73501,4194.6,4194.4,0.5543]
[1759307529569,0.46002,4194.4,4194.3,0.00217883]
[1759307529772,0.42902,4194.4,4194.3,0.00217883]
[1759307530064,0.42906,4194.0,4193.9,3.2078]
[1759307530255,0.73506,4194.0,4193.9,3.2078]
[1759307530458,5.73506,4194.0,4193.9,3.2078]
[1759307530659,0.42913,4193.4,4193.2,3.2078]
[1759307530866,0.42913,4193.4,4193.3,0.5543]
[1759307531066,0.42913,4193.4,4193.2,3.2078]
[1759307531067,0.42918,4192.8,4192.7,3.7621]
[1759307531270,0.00253398,4193.4,4192.7,3.76503434]
[1759307531458,0.42918,4192.8,4192.7,3.76503434]
[1759307531654,0.73518,4192.8,4192.7,3.21073434]
[1759307532055,0.42929,4191.8,4191.7,3.7621]
[1759307532262,0.73429,4191.8,4191.7,3.7621]
[1759307532465,0.73429,4191.8,4191.7,3.2078]
[1759307532660,1.37823,4191.8,4191.3,0.2371]
[1759307532863,0.42933,4191.4,4191.2,3.2078]
[1759307533066,0.305,4191.3,4191.2,0.00283873]
[1759307533264,0.305,4191.3,4191.2,8.73e-06]
[1759307533463,5.30107,4191.3,4191.2,8.73e-06]
[1759307533667,0.305,4191.3,4191.2,8.73e-06]
[1759307533971,0.305,4191.3,4191.2,0.55430873]
[1759307534268,5.305,4191.3,4191.2,8.73e-06]
[1759307534572,0.42939,4190.8,4190.7,2.64710873]
[1759307534872,0.42939,4190.8,4189.9,0.5543]
[1759307534873,1.07352,4190.7,4190.2,3.2078]
[1759307535073,0.42943,4190.4,4190.2,3.2078]
[1759307535465,0.42949,4189.8,4189.7,3.7621]
[1759307535773,0.43234603,4189.8,4189.7,0.88954339]
[1759307535963,0.73634603,4189.8,4189.7,0.55700133]
[1759307536665,3.2078,4190.8,4189.7,3.21050133]
[1759307536868,0.42948,4190.0,4189.9,0.5543]
[1759307537068,0.42948,4190.0,4189.9,1.23839948]
[1759307537266,0.42948,4190.0,4189.9,0.5543]
[1759307537478,44.0078,4190.8,4190.0,0.5543]
[1759307537778,44.01029188,4190.8,4190.1,1.23786523]
[1759307538080,44.01029188,4190.8,4189.8,0.5543]
[1759307538081,0.42946,4190.2,4189.8,0.5543]
[1759307538271,0.42944,4190.4,4190.1,0.5543]
[1759307538469,0.42946,4190.1,4189.7,0.00270133]
[1759307538779,0.42948,4190.0,4189.9,0.5543]
[1759307538975,0.73248,4190.0,4189.9,1.23748381]
[1759307539276,0.00249188,4190.8,4190.5,0.7223]
[1759307539474,0.00249188,4190.8,4190.7,0.7223]
[1759307539670,0.00249188,4190.8,4190.7,1.40484626]
[1759307539867,1.07314,4192.2,4190.7,1.40484626]
[1759307539868,3.2078,4193.1,4191.3,0.7223]
[1759307540178,0.7276,4193.5,4192.0,0.7223]
[1759307540179,0.42925,4192.2,4192.0,0.7223]
[1759307540368,0.305,4192.7,4192.1,1.7185041]
[1759307540568,0.305,4192.7,4191.5,0.62401166]
[1759307540569,0.73421,4192.6,4192.5,0.7223]
[1759307540775,0.43118004,4192.6,4192.5,1.03595784]
[1759307541280,0.43118004,4192.6,4192.5,0.7223]
[1759307541473,0.43118004,4192.6,4191.9,0.7223]
[1759307541474,0.42927,4192.0,4191.9,0.7223]
[1759307541778,0.42927,4192.0,4191.9,1.40405123]
[1759307542187,0.42927,4192.0,4191.9,0.7223]
[1759307542586,0.42927,4192.0,4191.9,1.40438624]
[1759307542985,0.42927,4192.0,4191.9,0.68208624]
[1759307543187,0.42929,4191.8,4191.7,3.2078]
[1759307543386,0.42929,4191.8,4191.7,3.89031559]
[1759307543788,0.42935,4191.2,4191.1,3.2078]
[1759307544989,0.42935,4191.2,4191.1,3.9306]
[1759307545388,0.42935,4191.2,4191.1,3.2078]
[1759307546281,0.42935,4191.2,4190.6,3.2078]
[1759307546282,0.42939,4190.8,4190.6,3.2078]
[1759307546594,0.302,4190.7,4190.6,3.2078]
[1759307547186,0.42945,4190.2,4190.1,0.7228]
[1759307547984,0.42945,4190.2,4190.0,3.2078]
[1759307548185,0.73145,4190.2,4190.0,3.2078]
[1759307548385,1.51545,4190.2,4190.0,3.2078]
[1759307548889,0.784,4190.1,4190.0,3.2078]
[1759307549086,0.784,4190.1,4189.7,0.00270133]
[1759307549087,0.42949,4189.8,4189.7,0.00270133]
[1759307549289,0.42949,4189.8,4189.7,0.72550133]
[1759307549892,0.42949,4189.8,4189.7,0.00270133]
[1759307550793,0.73049,4189.8,4189.7,0.00270133]
[1759307551090,1.51349,4189.8,4189.7,0.00270133]
[1759307551689,3.2078,4190.8,4189.8,0.7228]
[1759307551890,0.42949,4189.8,4189.7,0.72550133]
[1759307552084,0.42949,4189.8,4189.7,1.02550133]
[1759307552286,0.42944,4190.2,4189.9,0.7228]
[1759307552488,0.3,4190.4,4190.0,3.2078]
[1759307552790,1.85723,4191.7,4190.4,0.42942]
[1759307552986,0.42935,4191.1,4190.6,0.7228]
[1759307553288,0.3,4191.6,4190.6,0.7228]
[1759307553289,3.2078,4191.9,4190.7,0.7228]
[1759307553485,3.2078,4191.9,4191.1,0.7228]
[1759307553681,0.42929,4191.8,4191.4,0.42931]
[1759307553887,0.42928,4191.9,4191.3,0.7228]
[1759307554083,0.42928,4191.9,4191.5,3.2078]
[1759307554291,0.42928,4191.9,4191.6,0.7228]
[1759307554490,0.42928,4191.8,4191.6,0.7228]
[1759307554694,0.42929,4191.7,4191.6,0.7228]
[1759307554893,3.2078,4192.5,4191.6,0.3]
[1759307555088,1.07498004,4192.6,4192.1,0.7228]
[1759307555089,0.00197004,4192.6,4192.1,0.7228]
[1759307555390,0.00197004,4192.6,4192.2,0.7228]
[1759307555595,0.42924,4192.2,4192.0,3.82965761]
[1759307555892,0.42924,4192.2,4192.1,0.67962635]
[1759307556098,0.42922,4192.4,4192.1,0.67962635]
[1759307556390,0.42922,4192.4,4192.2,0.67962635]
[1759307556593,0.42924,4192.2,4192.0,3.2078]
[1759307556895,0.784,4192.1,4192.0,3.2078]
[1759307557096,0.784,4192.1,4192.0,3.88815912]
[1759307557894,1.082,4192.1,4192.0,0.68035912]
[1759307558494,6.082,4192.1,4192.0,0.68035912]
[1759307558797,6.082,4192.1,4191.3,3.2078]
[1759307558798,0.42932,4191.4,4191.3,3.2078]
[1759307558997,1.21332,4191.4,4191.3,3.8896371]
[1759307559200,0.784,4192.5,4191.4,0.7228]
[1759307559498,0.42924,4192.2,4192.0,0.7228]
[1759307559797,0.42924,4192.2,4192.1,0.6818371]
[1759307560187,6.0981,4192.2,4191.7,0.62446772]
[1759307560386,0.42931,4191.6,4191.3,3.2078]
[1759307560593,0.784,4192.0,4191.4,0.7228]
[1759307560790,3.2078,4192.4,4191.4,0.7228]
[1759307560989,0.42925,4192.1,4191.8,3.2078]
[1759307561190,0.42925,4192.1,4191.9,0.7228]
[1759307561387,0.298,4192.3,4191.8,3.2078]
[1759307561587,0.42927,4191.9,4191.8,3.2078]
[1759307561790,0.42927,4191.9,4191.7,3.2078]
[1759307562094,0.42931,4191.5,4191.4,0.62446772]
[1759307562297,0.298,4191.8,4191.2,0.7228]
[1759307562495,0.42929,4191.7,4191.4,0.42932]
[1759307562690,0.42929,4191.7,4191.1,3.83226772]
[1759307562691,0.42929,4191.7,4191.5,0.7228]
[1759307562892,0.42929,4191.7,4191.6,0.7228]
[1759307563195,0.298,4191.8,4191.5,0.42931]
[1759307563394,0.298,4191.8,4191.4,0.7228]
[1759307563700,0.42931,4191.6,4191.3,0.7228]
[1759307564197,0.42931,4191.6,4191.4,0.7228]
[1759307564794,3.2078,4191.9,4191.2,0.7228]
[1759307564998,0.42932,4191.4,4191.1,3.2078]
[1759307565299,0.42932,4191.4,4191.2,0.7228]
[1759307565497,0.297,4191.7,4191.1,3.2078]
[1759307565798,0.42933,4191.3,4191.2,0.7228]
[1759307566189,0.42933,4191.3,4191.1,3.2078]
[1759307566190,0.784,4191.2,4191.1,3.2078]
[1759307566393,8.5038,4191.2,4190.2,0.62446772]
[1759307566698,8.5038,4191.2,4189.5,3.2078]
[1759307566699,0.42949,4189.8,4189.5,3.2078]
[1759307567704,1.21349,4189.8,4189.5,3.2078]
[1759307567999,0.42949,4189.8,4189.5,3.2078]
[1759307568396,1.21349,4189.8,4189.5,3.2078]
[1759307568994,0.42948,4189.9,4189.7,0.72550133]
[1759307569302,0.42948,4189.9,4189.8,0.7228]
[1759307569500,0.42947,4190.0,4189.8,0.7228]
[1759307569701,0.296,4190.5,4189.8,0.7228]
[1759307569890,1.07345,4190.9,4190.1,3.2078]
[1759307569891,0.42945,4190.2,4190.1,3.2078]
[1759307570097,0.42945,4190.2,4190.1,3.9306]
[1759307570599,0.42945,4190.2,4190.1,3.2078]
[1759307570806,0.42945,4190.2,4189.7,0.00270133]
[1759307570807,0.42949,4189.8,4189.7,0.00270133]
[1759307571199,0.42948,4190.0,4189.7,0.72550133]
[1759307571395,0.42948,4189.9,4189.7,0.00270133]
[1759307571994,1.21348,4189.9,4189.7,0.00270133]
[1759307572798,0.42948,4189.9,4189.7,0.00270133]
[1759307573198,1.21298,4189.9,4189.7,0.00270133]
[1759307573806,0.7835,4189.8,4189.7,0.00270133]
[1759307574104,1.0773,4189.8,4189.7,0.00270133]
[1759307574294,4.2851,4189.8,4189.7,0.00270133]
[1759307574495,0.7835,4189.7,4188.5,3.2078]
[1759307574699,0.42961,4188.6,4188.5,3.2078]
[1759307575396,1.21311,4188.6,4188.5,3.2078]
[1759307575598,1.21530841,4188.6,4188.5,3.20991891]
[1759307575794,1.21530841,4188.6,4188.5,0.00211891]
[1759307576996,0.78569841,4188.6,4188.5,0.00211891]
[1759307577200,1.07379,4189.6,4188.6,0.795]
[1759307577396,0.42954,4189.4,4188.9,0.42958]
[1759307577605,0.4295,4189.7,4189.3,0.795]
[1759307577809,3.2078,4190.4,4189.8,0.795]
[1759307578104,3.20970406,4190.4,4189.8,0.795]
[1759307578407,0.42949,4189.8,4189.6,0.294]
[1759307578708,0.42949,4189.8,4189.7,0.795]
[1759307579007,0.42953,4189.5,4189.1,0.795]
[1759307579207,1.07366,4190.1,4189.3,0.795]
[1759307579502,0.7835,4189.7,4189.3,0.795]
[1759307579707,1.07376,4189.7,4189.0,3.2078]
[1759307579905,0.293,4189.9,4189.2,0.42955]
[1759307580207,0.42952,4189.6,4189.0,3.2078]
[1759307580404,0.42949,4189.8,4189.5,3.2078]
[1759307580704,0.4295,4189.7,4189.5,3.2078]
[1759307580907,0.42954,4189.3,4189.1,0.795]
[1759307581109,0.4296,4188.8,4188.7,3.2078]
[1759307581307,1.07384,4189.4,4188.7,3.2078]
[1759307581308,0.42953,4189.4,4188.8,0.795]
[1759307581499,0.42953,4189.5,4189.2,3.2078]
[1759307581802,3.2078,4189.9,4189.2,3.2078]
[1759307582001,0.42947,4190.0,4189.7,0.42949]
[1759307582206,0.42947,4190.0,4189.9,0.795]
[1759307582409,3.20970406,4190.4,4190.2,0.795]
[1759307582410,0.43133406,4190.4,4190.2,0.795]
[1759307582802,0.00190406,4190.4,4190.3,0.795]
[1759307584198,55.047,4192.1,4190.3,0.795]
[1759307584199,0.42931,4191.6,4191.0,0.42936]
[1759307584398,3.2078,4192.4,4191.4,3.2078]
[1759307584605,0.42913,4193.3,4192.3,0.42923]
[1759307584809,0.7835,4193.4,4192.7,3.2078]
[1759307585010,0.42918,4192.9,4192.7,0.795]
[1759307585210,0.42919,4192.8,4192.7,0.00301419]
[1759307585406,0.00232133,4192.9,4192.8,0.795]
[1759307585609,0.42918,4192.8,4192.7,3.21081419]
[1759307586212,1.21268,4192.8,4192.7,0.00301419]
[1759307586704,0.00232133,4192.9,4192.7,3.21081419]
[1759307586909,0.00232133,4192.9,4192.8,4.5891]
[1759307587104,0.42908,4193.7,4192.8,4.5891]
[1759307587105,0.2938,4194.6,4193.6,0.795]
[1759307587308,0.42908,4193.8,4193.6,0.795]
[1759307587510,4.2823,4194.2,4193.3,4.0028]
[1759307587704,4.2823,4194.2,4193.3,3.2078]
[1759307588107,0.42911,4193.5,4193.3,3.2078]
[1759307588312,0.7835,4193.4,4193.3,3.2078]
[1759307589212,0.42917,4192.9,4192.7,0.00301419]
[1759307589799,0.42925,4192.1,4191.5,3.2078]
[1759307590009,0.71918,4192.8,4191.6,1.0903]
[1759307590310,0.42923,4192.4,4191.6,1.5196]
[1759307590501,0.7835,4192.7,4191.6,1.0903]
[1759307590814,3.2078,4192.4,4191.6,0.7967091]
[1759307591009,0.42926,4192.1,4191.6,0.0017091]
[1759307591215,0.42916,4193.1,4192.1,0.795]
[1759307591510,3.2078,4193.2,4192.5,0.795]
[1759307591708,0.42917,4193.0,4192.5,0.795]
[1759307591913,0.4292,4192.6,4192.0,3.2078]
[1759307592114,0.42925,4192.2,4192.0,3.2078]
[1759307593008,0.7835,4192.1,4192.0,3.2078]
[1759307593316,1.07315,4192.1,4191.6,0.0017091]
[1759307593519,0.7835,4191.9,4191.6,0.0017091]
[1759307593813,1.21279,4191.7,4191.6,0.0017091]
[1759307594003,4.42059,4191.7,4191.6,0.0017091]
[1759307594810,9.42059,4191.7,4191.6,0.0017091]
[1759307595216,0.42931,4191.5,4191.4,0.4220291]
[1759307595410,42.01281,4191.5,4191.4,0.4220291]
[1759307595602,42.01281,4191.5,4191.4,9.1e-06]
[1759307596216,0.42942,4190.5,4190.4,4.0028]
[1759307596414,41.87332,4191.5,4190.5,0.795]
[1759307596608,0.42942,4190.5,4190.4,4.0028]
[1759307597413,0.43213039,4190.5,4190.4,4.00496474]
[1759307598211,0.00271039,4190.5,4190.4,4.00496474]
[1759307599413,0.00271039,4190.5,4190.4,9.30026474]
[1759307599617,0.00271039,4190.5,4190.4,4.00496474]
[1759307600717,0.00271039,4190.5,4190.4,3.20996474]
[1759307600915,0.73701039,4190.5,4190.4,3.20996474]
[1759307601110,0.00271039,4190.5,4190.4,3.20996474]
[1759307601315,3.2078,4191.2,4190.4,3.20996474]
[1759307601512,3.2078,4191.7,4190.8,0.42938]
[1759307601718,0.42936,4191.1,4190.9,0.7158]
[1759307602013,1.07327,4191.6,4190.5,0.287]
[1759307602221,0.42935,4191.2,4190.4,3.92576474]
[1759307602410,0.42935,4191.2,4190.4,3.20996474]
[1759307602411,0.287,4191.1,4190.4,3.20996474]
[1759307602614,0.4294,4190.7,4190.5,0.7158]
[1759307602919,0.42941,4190.6,4190.5,0.7158]
[1759307603521,0.42941,4190.6,4190.4,3.99396474]
[1759307603716,0.42941,4190.6,4190.4,3.20996474]
[1759307604018,0.42941,4190.6,4190.5,0.784]
[1759307604320,0.42941,4190.6,4190.4,3.20996474]